Cogmind - Beta 13 @@@ ROGUE MODE // 2024.07.03 @ 12:56:50 Player: Jazzer Result: Destroyed by OJ-MBA(R) with Subdweller Machine Gun Performance ------------- Evolutions (0) 0 Regions Visited (2) 400 Robots Destroyed (40) 200 Value Destroyed (1136) 1136 Prototype IDs (1) 20 Alien Tech Used (0) 0 Bonus (0) 0 TOTAL SCORE: 1756 Bonus ------- None Cogmind --------- Core Integrity 0/250 Matter 300/300 Energy 142/180 System Corruption 2% Temperature Cool (36) Movement Rolling (80) Location -10/Subcaves Parts ------- > --- POWER (1) -------- Meta Core > --- PROPULSION (2+1) - Wheel Wheel > --- UTILITY (2+1) ---- Improved Targeting Computer (+) > --- WEAPON (2+1) ----- Subdweller Laser (fused) Subdweller Beam Cannon Mace (+) > --- INVENTORY (5) ---- Improved Heat Sink Huge Storage Unit Seismic Detector Subdweller Machine Gun Grenade Launcher Peak State ------------ > --- POWER ------------ Meta Core > --- PROPULSION ------- Wheel Wheel > --- UTILITY ---------- Huge Storage Unit Improved Targeting Computer Makeshift Light Armor Plating > --- WEAPON ----------- Subdweller Laser Subdweller Beam Cannon Mace > --- INVENTORY -------- Ion Engine Light Ion Engine Heat Sink Improved Heat Sink Improved Heat Sink Seismic Detector Improved Targeting Computer Improved Targeting Computer Improved Targeting Computer Core Shielding Core Shielding Propulsion Shielding Propulsion Shielding Makeshift Thermal Plating Makeshift Thermal Plating Subdweller Laser Subdweller Laser Subdweller Beam Cannon Subdweller Beam Cannon Light Assault Rifle Grenade Launcher Grenade Launcher Grenade Launcher Subdweller Shrapnel Launcher Mining Claw [Rating: 32] Favorites ----------- Power Meta Core Engine Ion Engine Power Core Meta Core Propulsion Wheel Wheel Wheel Utility Huge Storage Unit Device Seismic Detector Storage Huge Storage Unit Processor Improved Targeting Computer Protection Light Armor Plating Weapon Mace Energy Gun Subdweller Laser Energy Cannon Subdweller Beam Cannon Ballistic Gun Assault Rifle Launcher Grenade Launcher Impact Weapon Mace Build | -11 -10 -10 ------- Run | Yrd Mat Sub Slots Evolved . | . . . Power . | . . . Propulsion . | . . . Utility . | . . . Weapon . | . . . Parts Attached 46 | 9 8 29 Power 5 | 2 2 1 Engine 4 | 2 2 . Core 1 | . . 1 Reactor . | . . . Propulsion 8 | 2 2 4 Treads . | . . . Leg . | . . . Wheel 8 | 2 2 4 Hover . | . . . Flight . | . . . Utility 14 | 2 2 10 Device 5 | 1 1 3 Storage 2 | 1 1 . Processor 1 | . . 1 Hackware . | . . . Protection 6 | . . 6 Artifact . | . . . Weapon 19 | 3 2 14 Energy Gun 2 | 1 . 1 Energy Cannon 2 | . . 2 Ballistic Gun 7 | 2 1 4 Ballistic Cannon . | . . . Launcher 5 | . . 5 Special Weapon . | . . . Impact Weapon 3 | . 1 2 Slashing Weapon . | . . . Piercing Weapon . | . . . Special Melee Weapon . | . . . Unidentified Prototypes 1 | . . 1 Parts Lost 13 | . 5 8 Power 1 | . 1 . Propulsion 6 | . 2 4 Utility 2 | . . 2 Weapon 4 | . 2 2 Highest Loss Streak 2 | . 2 2 To Critical Strikes . | . . . Average Slot Usage (%) 93 | . 98 90 Engine 6 | . 13 2 Core 5 | . . 8 Wheel 23 | . 27 21 Device 6 | . 14 3 Storage 11 | . 14 9 Processor 5 | . . 8 Protection 4 | . . 7 Energy Gun 6 | . 7 5 Energy Cannon 5 | . . 8 Ballistic Gun 9 | . 14 6 Impact Weapon 7 | . 5 8 Naked Turns . | . . . Heaviest Build 108 | 14 89 108 Greatest Support 32 | 32 32 26 Greatest Overweight (x) 9 | . 3 9 Average Overweight (x) 3 | . 1 4 Largest Inventory Capacity 25 | 8 25 25 Average Capacity 21 | 7 20 23 Most Carried 25 | 8 25 25 Average Carried 18 | 2 13 21 Final Capacity 25 | 8 25 5 Final Carried 25 | 8 25 5 Class Distribution -------------------- 64% | Mutant 29% | Scavenger-Mutant 6% | Subdweller-Mutant Dominant Class ---------------- Mutant | -10/Materials Scavenger-Mutant | -10/Subcaves Resources | -11 -10 -10 ----------- Run | Yrd Mat Sub Matter Collected 1069 | 314 177 578 Remotely . | . . . Salvage Created 1351 | 123 636 592 Parts 77 | 9 29 39 Haulers Intercepted 1 | . 1 . Recyclers Shooed . | . . . Parts Field Recycled . | . . . Retrieved Matter . | . . . Parts Self-Destructed 7 | . . 7 Prevented . | . . . Kills | -11 -10 -10 ------- Run | Yrd Mat Sub Combat Hostiles Destroyed 28 | . 10 18 Guns 11 | . 9 2 Cannons 8 | . . 8 AOE 8 | . . 8 Classes Destroyed 12 | 2 5 5 Worker 1 | . 1 . Builder 2 | . 2 . Tunneler 3 | 2 1 . Hauler 1 | . 1 . Recycler 2 | 1 1 . Operator 1 | . 1 . Turret 2 | . . 2 Swarmer 3 | . . 3 Grunt 10 | . 10 . Sentry 1 | . . 1 Artisan 3 | . . 3 Subdweller 14 | . . 14 Best Kill Streak 3 | 3 2 3 Combat Bots Only 3 | . 2 3 Max Kills in Single Turn 2 | 1 1 2 Gunslinging . | . . . Exploded 2 | . . 2 Melee . | . . . Uniques/NPCs Destroyed . | . . . Combat | -11 -10 -10 -------- Run | Yrd Mat Sub Hostile Shots Fired 188 | . 53 135 Missed 71 | . 14 57 Damage Taken 1621 | . 524 1097 Core 263 | . 74 189 Absorbed by Shields . | . . . Redirected to Shielding 4 | . . 4 Ignored by Resistances 33 | . . 33 Core Remaining (%) 100 | 100 . . Volleys Fired 125 | 8 46 71 Largest 2 | 2 2 2 Hottest 160 | 60 60 160 Shots Fired 216 | 16 83 117 Gun 128 | 16 83 29 Cannon 68 | . . 68 Launcher 20 | . . 20 Special . | . . . Kinetic 76 | 8 46 22 Thermal 120 | 8 37 75 Explosive 20 | . . 20 Electromagnetic . | . . . Robot Hit Streak 33 | 4 15 33 Robot Miss Streak 5 | 5 3 1 Penetration Max . | . . . Secondary Targets . | . . . Shots Hit Robots 140 | 8 74 58 Core Hits 67 | 3 25 39 Critical Kills . | . . . Critical Parts Destroyed 3 | . 2 1 Critical Strikes 5 | . 2 3 Destroy 3 | . . 3 Smash 2 | . 2 . Melee Attacks 44 | . 13 31 Impact 44 | . 13 31 Slashing . | . . . Piercing . | . . . Sneak Attacks 10 | . 7 3 Combat Hostiles . | . . . Follow-up Attacks . | . . . Damage Inflicted 3462 | 91 1353 2018 Guns 1103 | 91 724 288 Cannons 593 | . . 593 Explosions 864 | . . 864 Melee 902 | . 629 273 Ramming . | . . . Kinetic 633 | 37 393 203 Thermal 1063 | 54 331 678 Explosive 864 | . . 864 Electromagnetic . | . . . Impact 902 | . 629 273 Slashing . | . . . Piercing . | . . . Highest Corruption 2 | . 2 2 Average Corruption 1 | . 1 2 Corruption Purged . | . . . Corruption Blocked . | . . . Effects 34 | . 2 32 Message Errors 12 | . 2 10 Matter Fused 9 | . . 9 Heat Flow Errors 3 | . . 3 Energy Discharges 4 | . . 4 Parts Fused 1 | . . 1 Data Loss (minor) 3 | . . 3 Misfires 2 | . . 2 Overload Shots . | . . . Overflow Damage 375 | . 289 86 Projectiles . | . . . Explosions 6 | . . 6 Melee 369 | . 289 80 Knockbacks 2 | . 2 . Impact 2 | . 2 . Kinetic . | . . . Secondary . | . . . Self-Inflicted Damage 45 | . . 45 Shots 2 | . . 2 Rammed . | . . . Targets Rammed . | . . . Kicked . | . . . Crushed . | . . . Highest Temperature 276 | . 42 276 Average Temperature 61 | . 21 80 Received Heat Transfer 558 | . 273 285 Siege Activations . | . . . Robots Corrupted . | . . . Combat Hostiles . | . . . Parts Fried 16 | . 11 5 Impact Corruptions 13 | . 10 3 Robots Melted . | . . . Combat Hostiles . | . . . Parts Melted 1 | . 1 . Heat Transferred 1789 | 125 750 914 Parts Sabotaged . | . . . Parts Stolen . | . . . Parts Stripped . | . . . Power Chain Reactions . | . . . Alert | -11 -10 -10 ------- Run | Yrd Mat Sub Peak Influence 202 | 15 202 . Initial 9 | . 9 . Average 60 | 4 64 . Maximum Alert Level 1 | . 1 . Low Security (%) 98 | 100 98 . Level 1 1 | . 1 . Level 2 . | . . . Level 3 . | . . . Level 4 . | . . . Level 5 . | . . . High Security . | . . . Max Security . | . . . Squads Dispatched 1 | . 1 . Investigation . | . . . Extermination . | . . . Reinforcement 1 | . 1 . Assault . | . . . Garrison . | . . . Intercept . | . . . Searches Triggered . | . . . Construction Impeded . | . . . Haulers Reinforced . | . . . Active Scanning Responses . | . . . Cargo Convoy Interrupts . | . . . Stealth | -11 -10 -10 --------- Run | Yrd Mat Sub Distress Signals 2 | . 2 . Communications Jammed . | . . . Distress Signals . | . . . Times Spotted 76 | . 26 50 Peak Tracking Total 5 | . 4 5 Tactical Retreats 8 | . 4 4 Traps | -11 -10 -10 ------- Run | Yrd Mat Sub Traps Triggered 4 | . 2 2 Indirectly . | . . . Trap Hack Attempts . | . . . Triggered . | . . . Disarmed . | . . . Reprogrammed . | . . . Reused . | . . . Traps Extracted . | . . . Installed . | . . . Triggered . | . . . Machines | -11 -10 -10 ---------- Run | Yrd Mat Sub Machines Disabled 3 | . . 3 Max in Single Turn 1 | . . 1 Machines Repaired . | . . . Machines Dismantled . | . . . Machines Sabotaged . | . . . Overloaded Fab Kills . | . . . Hacking | -11 -10 -10 --------- Run | Yrd Mat Sub Machines Accessed 8 | . 8 . Terminals 7 | . 7 . Fabricators . | . . . Repair Stations . | . . . Recycling Units 1 | . 1 . Scanalyzers . | . . . Garrison Access . | . . . Total Hacks 22 | . 22 . Successful 13 | . 13 . Failed 8 | . 8 . Catastrophic . | . . . Database Lockouts 1 | . 1 . Manual 9 | . 9 . Terminals 21 | . 21 . Fabricators . | . . . Repair Stations . | . . . Recycling Units 1 | . 1 . Scanalyzers . | . . . Garrison Access . | . . . Terminal Hacks 10 | . 10 . Robot Analysis 2 | . 2 . Terminal Index 1 | . 1 . Alert Level 2 | . 2 . Unreport Threat 1 | . 1 . Locate Traps 2 | . 2 . Transport Status 1 | . 1 . Hauler Manifests 1 | . 1 . Fabricator Hacks . | . . . Repair Station Hacks . | . . . Recycling Unit Hacks 1 | . 1 . Retrieve Components 1 | . 1 . Scanalyzer . | . . . Garrison Access Hacks . | . . . Unauthorized Hacks 2 | . 2 . Terminals 2 | . 2 . Botnet 2 | . 2 . Fabricators . | . . . Repair Stations . | . . . Recycling Units . | . . . Scanalyzers . | . . . Garrison Access . | . . . Data Cores Recovered 1 | . 1 . Used . | . . . Hacking Detections 7 | . 7 . Full Trace Events . | . . . Feedback Events . | . . . Feedback Blocked . | . . . Robot Schematics Acquired . | . . . Robots Built . | . . . Authchips . | . . . Time . | . . . Total Robot Build Rating . | . . . Part Schematics Acquired . | . . . Parts Built . | . . . Authchips . | . . . Time . | . . . Total Part Build Rating . | . . . Parts Repaired . | . . . Time . | . . . Parts Recycled . | . . . Recycled Matter . | . . . Retrieved Matter . | . . . Retrieved Components 10 | . 10 . Parts Scanalyzed . | . . . Part Schematics Acquired . | . . . Parts Damaged . | . . . Bothacking | -11 -10 -10 ------------ Run | Yrd Mat Sub Used RIF Installer . | . . . Robots Hacked . | . . . Non-combat . | . . . Combat . | . . . Robot Hacks Applied . | . . . Relay Couplers Released . | . . . Fabnet Peak Effective % . | . . . Robots Rewired . | . . . Allies Hacked . | . . . Hacks Repelled . | . . . Allies | -11 -10 -10 -------- Run | Yrd Mat Sub Total Allies . | . . . Largest Group . | . . . Highest-Rated Group . | . . . Highest-Rated Ally . | . . . Total Orders . | . . . Ally Attacks . | . . . Total Damage . | . . . Kills . | . . . Allies Corrupted . | . . . Allies Melted . | . . . Intel | -11 -10 -10 ------- Run | Yrd Mat Sub Robot Analysis Total 2 | . 2 . Derelict Logs Recovered 1 | . . 1 Drone Launches . | . . . Drone Recoveries . | . . . Exploration | -11 -10 -10 ------------- Run | Yrd Mat Sub Turns Passed 4304 | 117 1445 2742 Spaces Moved 2652 | 75 924 1653 Core 2 | 2 . . Treads . | . . . Legs . | . . . Wheels 2650 | 73 924 1653 Hover . | . . . Flight . | . . . Fastest Speed 50 | 50 100 95 Average Speed 134 | 98 123 142 Slowest Speed 215 | 100 135 215 Overloaded Moves . | . . . Propulsion Burnouts . | . . . Robots Hopped . | . . . Cave-ins Triggered . | . . . Exploration Rate (%) 63 | 6 100 85 Regions Visited 2 Branch Regions 1 Pre-discovered Areas 1 | . . 1 Known Exits Taken . | . . . Unknown Exits Taken 2 | 1 1 . Scrap Searched 5 | . . 5 Spaces Dug 17 | . . 17 Terrain Destroyed 101 | . . 101 Melee 9 | . . 9 Projectile 41 | . . 41 AOE 51 | . . 51 Terrain Rammed . | . . . Walls Destroyed . | . . . Machines Disabled . | . . . Actions | -11 -10 -10 --------- Run | Yrd Mat Sub Total 3086 | 97 1124 1865 Wait 148 | . 103 45 Move 2650 | 74 923 1653 Hop . | . . . Pick Up 50 | 6 24 20 Fast Attach 11 | 7 2 2 Attach 15 | . 5 10 Detach 3 | . 2 1 Swap 20 | 2 1 17 Drop 20 | . 5 15 Fire 125 | 8 46 71 Melee 44 | . 13 31 Ram . | . . . Kick . | . . . Crush . | . . . Escape Stasis . | . . . Rewire . | . . . Trap . | . . . Miscellaneous . | . . . Route ------- -11/Scrapyard -10/Materials (discovered 6 exits: [*Mat x3] / [*Min x2] / *Sub) -10/Subcaves (discovered 3 exits: [*Mat x2] / [*Rec]) History --------- Turn | Location | Event 13 | -11/Scrapyard | Discovered new exit (range 15) 118 | -11/Scrapyard | Entered Materials 305 | -10/Materials | Build established: Mutant 460 | -10/Materials | Discovered new exit (range 4) 479 | -10/Materials | Discovered new exit (range 15) 796 | -10/Materials | Central database locked down 849 | -10/Materials | Discovered new exit (range 11) 1163 | -10/Materials | Discovered new exit (range 7) 1343 | -10/Materials | Discovered new exit (range 11) 1547 | -10/Materials | Discovered new exit (range 9) 1563 | -10/Materials | Entered Subcaves 1564 | -10/Subcaves | Ambushed by Subdwellers from Twisted Machinery 1616 | -10/Subcaves | Discovered new exit (range 10) 1856 | -10/Subcaves | Shifting Twisted Machinery released Mak. Thermal Plating 1859 | -10/Subcaves | Shifting Twisted Machinery released Sub. Power Source 1949 | -10/Subcaves | Core integrity fell below 50% 2076 | -10/Subcaves | A Subdweller sparked back to life 2076 | -10/Subcaves | A Subdweller sparked back to life 2098 | -10/Subcaves | Found Prototype Power Core 2098 | -10/Subcaves | Identified Meta Core 2099 | -10/Subcaves | Attached Meta Core, gained temporary slots: Propulsion, Utility, Weapon 2330 | -10/Subcaves | Discovered new exit (range 13) 2381 | -10/Subcaves | Learned Materials stockpile data 2397 | -10/Subcaves | Ambushed by Subdweller buried in earth 2430 | -10/Subcaves | Ambushed by Subdweller buried in earth 2541 | -10/Subcaves | Ambushed by Subdweller buried in earth 2587 | -10/Subcaves | Ambushed by Subdweller buried in earth 2595 | -10/Subcaves | Core integrity fell below 20% 2711 | -10/Subcaves | Shifting Twisted Machinery released Sub. Beam Cannon 2728 | -10/Subcaves | Shifting Twisted Machinery released Battle Cannon 2852 | -10/Subcaves | Discovered new exit (range 7) 2867 | -10/Subcaves | Visited Clippyterm 3079 | -10/Subcaves | Build established: Scavenger-Mutant 3300 | -10/Subcaves | Disturbed a concealed Subdweller 3653 | -10/Subcaves | Ambushed by angry Subdweller bent on revenge 3959 | -10/Subcaves | Learned location of Zion (-6) 3959 | -10/Subcaves | Met a Zionite searching for "candidates" 4304 | -10/Subcaves | Ambushed by Subdweller buried in earth 4305 | -10/Subcaves | Destroyed by OJ-MBA(R) with Subdweller Machine Gun Last Messages --------------- 04145_ System corrupted: Heat flow error (+284). 04174_ P 04271_ Multitool fried. 04271_ N6-23W(u) cries out in pain. 04271_ N6-23W(u) destroyed. 04273_ Acquired 10 matter. 04300_ OJ-MBA(R) angrily emerges from the Twisted Machinery. 04300_ OJ-MBA(R): "SUBHATE!" 04302_ DK-C0Y(R) suffers critical hit (Destroy). 04302_ Destroyed Sub. Machine Gun. 04302_ DK-C0Y(R) destroyed. 04304_ Scrap Shield destroyed. 04305_ RS-OMC(R): "ARGHSUB!" 04305_ RS-OMC(R) destroyed. Map ----- +----------------------------------------------------+ | ?????# ##?????## #?????????????? | | ?????# #???????# #?????????????? | | ?????## ## #???????# ##?????????????? | | ??????######## ##??????# #??????????????? | | ???????######### #??????# ##?????????????? | | ??????## ##?# ##?###??# #?????????????? | | ??????# #?## #?# #??# #?????????????? | | ?????## #????# ## #??# ##?????????????? | | ????## ##????# #???# ###????????????? | | ???## ##???## ##?##" #"?????????????? | | ???# ##### #####" ##????????????? | | #### ## ###?# " "#????????????? | | ##??##" "#????????????? | | #???#"" #????????????? | | #####" #????????????? | | ### ##"%#" "#????????????? | | ??# ## ##]%#""! ##????????????? | | ### ### ##=##""%| "#????????????? | | ## #?# ####&# * "##????????????? | | ###### [ #??#"& #" #"#?????????????? | | #???## ########## ###?????????????? | | #????# ##;; ##### ##?????????????? | | ##???## ;; # #?????????????? | | #????# ;; #?????????????? | | #?# #?????????????? | | ### ## @ #?????????????? | | ##?#"" "R &*& #?????????????? | | ##?# """" "" """ [%= ####?????????????? | | #?? ""##""""""" !& #????????????????? | | #?# ####""""""# ;; #????????????????? | | ?? "??###"""###; ####????????????????? | | ???? ?"????##"#??### ##???????????????????? | | #??? ?????????##### & #???????????????????? | | ????????????#### ###%R #???????????????????? | | #??????????##""" ! #???????????????????? | | # ?????????##" ""% #???????????????????? | | ? ??????# ##"" " #???????????????????? | | ? ??????# "" "" ##???????????????????? | | ?## ?? "" "### ###????????????????????? | | ???#??? ## "" ####?###??????????????????????? | | ?????????########??????????????????????????????? | | ???????????????????????????????????????????????? | | ???????????????????????????????????????????????? | | ???????????????????????????????????????????????? | | ???????????????????????????????????????????????? | | ???????????????????????????????????????????????? | | ???????????????????????????????????????????????? | | ???????????????????????????????????????????????? | | ???????????????????????????????????????????????? | | ???????????????????????????????????????????????? | +----------------------------------------------------+ Best States ------------- Heat Dissipation 39 Energy Generation 17 Energy Capacity 250 Matter Stores 300 Matter Capacity 300 Sight Range 16 Terrain Scan Density 10 Armor Coverage 800 Resistance: TH 10 Core Shielding 20 Evasion (%) 41 Targeting Accuracy 6 Item Schematics ----------------- None Robot Schematics ------------------ None Fabricated ------------ Nothing Alien Tech Used ----------------- None Achievements -------------- None Challenges ------------ None Game ------ Seed SiegeSurgeVibroblade Manual? 0 Play Time 00:40:16 Cumulative 302.9 hours Start 2024.07.03 @ 12:18:44 End 2024.07.03 @ 12:56:50 Sessions 1 Manual Loads 0 Difficulty Rogue Special Mode None Game No. 176 Rogue 176 Adventurer 0 Explorer 0 Win Type - Total 2 Types 2/0/0/0/0/0/0/0/0 Lore% 53 Gallery% 63 Achievement% 39 Wizard Run 0 Options --------- Layout 0 ASCII 0 Keyboard 1 Movement Numpad Keybinds 0 Fullscreen 2 Font 18/SmallcapsGlow Map View 76x50 Zoom Use 0% Tactical HUD 1 Map Filters NONE Filters NONE Steam 1 RUN: 5cb4e51d-e3c0-49a5-8a28-8682a2ae17f1